bitfinex/quotes_SOLUSD_20260314
["timestamp","ask_amount","ask_price","bid_price","bid_amount"]
[1773509588232,0.45979869,87.025,86.993,7.79685892]
[1773509588745,0.45979869,87.023,86.994,0.47685892]
[1773509590350,0.45979869,87.021,86.994,0.47685892]
[1773509590929,0.45979869,87.021,87.0,3.74590204]
[1773509593353,11.49161112,87.02,87.0,3.74590204]
[1773509593652,0.45979869,87.019,87.0,3.74590204]
[1773509596556,0.45979869,87.017,87.0,3.74590204]
[1773509598249,11.95193806,87.016,87.0,4.22276096]
[1773509598456,0.45979869,87.015,87.0,4.22276096]
[1773509602760,11.49240352,87.014,87.0,4.22276096]
[1773509602952,11.95480067,87.014,87.0,4.22276096]
[1773509610548,0.46239715,87.013,87.0,4.22276096]
[1773509610947,40.21185904,87.039,87.0,3.74590204]
[1773509611147,0.46239715,87.038,87.0,4.24525493]
[1773509613771,0.46239715,87.036,87.011,0.49935289]
[1773509617375,0.46239715,87.034,87.011,0.49935289]
[1773509619786,0.46239715,87.032,87.011,0.49935289]
[1773509620989,0.46239715,87.03,87.011,0.49935289]
[1773509626508,0.46239715,87.028,87.011,0.49935289]
[1773509628498,0.46239715,87.026,86.985,0.49935289]
[1773509628798,0.46239715,87.019,86.971,0.49935289]
[1773509629007,0.46239715,87.009,86.971,0.49935289]
[1773509630396,11.49319602,87.008,86.972,11.49795336]
[1773509630593,0.48401993,87.007,86.973,0.45393942]
[1773509633788,0.48401993,87.007,86.98,3.74332992]
[1773509633988,0.45648257,87.005,86.981,0.49077342]
[1773509635992,0.45648257,87.003,86.981,11.49676366]
[1773509636192,0.45648257,87.003,86.982,0.49077342]
[1773509637096,11.49372442,87.004,86.982,0.49077342]
[1773509637497,11.49372442,87.004,86.991,0.49077342]
[1773509641421,0.45648257,87.004,86.99,3.74332992]
[1773509641720,0.45648257,87.004,86.975,11.49751015]
[1773509642220,0.45648257,87.004,86.98,3.74332992]
[1773509642522,0.45648257,87.004,86.981,0.49077342]
[1773509646509,0.45648257,87.002,86.981,0.49077342]
[1773509651731,0.45648257,86.999,86.961,0.49077342]
[1773509651935,0.45648257,86.989,86.961,0.49077342]
[1773509656026,0.45648257,86.987,86.96,0.2]
[1773509657817,0.45648257,86.987,86.96,0.69077342]
[1773509658727,0.45648257,86.985,86.96,0.69077342]
[1773509660840,0.45648257,86.983,86.961,0.49077342]
[1773509664640,11.49663148,86.982,86.961,0.49077342]
[1773509664816,0.4913747,86.981,86.961,0.49077342]
[1773509668436,0.4913747,86.979,86.961,0.49077342]
[1773509674338,0.4913747,86.979,86.96,3.94332992]
[1773509677246,0.4913747,86.979,86.96,4.40835992]
[1773509679238,0.4913747,86.977,86.953,0.46503]
[1773509680537,0.4913747,86.975,86.953,0.46503]
[1773509682745,0.4913747,86.973,86.95,3.94825246]
[1773509683350,0.4913747,86.973,86.95,4.41328246]
[1773509683534,0.4913747,86.973,86.951,0.46503]
[1773509684446,0.4913747,86.973,86.95,0.2]
[1773509684752,0.4913747,86.957,86.927,0.46503]
[1773509684948,0.4913747,86.957,86.93,3.94825246]
[1773509685150,0.4913747,86.957,86.93,4.41328246]
[1773509685656,0.4913747,86.957,86.93,0.2]
[1773509686741,0.4913747,86.955,86.93,0.2]
[1773509689442,0.4913747,86.953,86.93,0.2]
[1773509690668,11.50059803,86.952,86.93,0.2]
[1773509690845,11.50059803,86.952,86.931,0.47355946]
[1773509690846,0.47417282,86.951,86.931,0.47355946]
[1773509692355,11.50086256,86.95,86.931,0.47355946]
[1773509692558,0.47965813,86.949,86.931,0.47355946]
[1773509695366,11.50112711,86.948,86.931,0.47355946]
[1773509695683,11.98078524,86.948,86.931,0.47355946]
[1773509698275,0.47965813,86.953,86.931,0.450542]
[1773509698451,11.97959488,86.957,86.931,0.450542]
[1773509698757,0.47965813,86.956,86.931,0.450542]
[1773509699470,11.50020125,86.955,86.932,0.450542]
[1773509699653,11.97985938,86.955,86.932,0.450542]
[1773509699854,0.47965813,86.954,86.932,0.450542]
[1773509703183,11.49970615,86.959,86.932,0.450542]
[1773509703369,11.49970615,86.959,86.941,0.450542]
[1773509703777,0.47965813,86.958,86.941,0.450542]
[1773509704079,0.47965813,86.958,86.931,0.450542]
[1773509705483,0.47965813,86.956,86.931,0.450542]
[1773509710389,0.47965813,86.954,86.931,0.450542]
[1773509714084,11.50046576,86.953,86.931,0.450542]
[1773509714291,11.98012389,86.953,86.931,0.450542]
[1773509714784,11.50046576,86.953,86.931,0.450542]
[1773509714974,0.47965813,86.952,86.931,0.450542]
[1773509715372,0.47965813,86.952,86.94,4.19879446]
[1773509715687,0.47965813,86.952,86.936,0.450542]
[1773509716188,11.50073029,86.951,86.936,0.450542]
[1773509716392,0.47965813,86.95,86.936,0.450542]
[1773509722795,0.49912946,86.962,86.936,0.450542]
[1773509722981,0.49912946,86.972,86.941,0.49297777]
[1773509724107,0.49912946,86.972,86.94,3.74825246]
[1773509724792,0.49912946,86.972,86.94,4.24123023]
[1773509726096,0.49912946,86.97,86.941,0.49297777]
[1773509728514,0.49912946,86.968,86.941,0.49297777]
[1773509729314,0.49912946,86.968,86.951,0.49297777]
[1773509729489,0.49912946,86.968,86.943,0.49297777]
[1773509734306,11.49861441,86.967,86.943,0.49297777]
[1773509734606,11.49861441,86.967,86.95,3.74825246]
[1773509734809,11.49861441,86.967,86.951,0.49297777]
[1773509735615,11.49806256,86.972,86.951,0.49297777]
[1773509738013,0.49912946,86.972,86.951,0.49297777]
[1773509740393,11.49808556,86.971,86.951,0.49297777]
[1773509740588,11.99721502,86.971,86.951,0.49297777]
[1773509742101,0.49912946,86.97,86.951,0.49297777]
[1773509746423,11.49834998,86.969,86.951,0.49297777]
[1773509746633,11.99747944,86.969,86.951,0.49297777]
[1773509746922,0.49912946,86.968,86.951,0.49297777]
[1773509747808,0.49912946,86.968,86.95,3.74841253]
[1773509749218,11.49861441,86.967,86.947,0.49297777]
[1773509749401,0.49912946,86.966,86.947,0.49297777]
[1773509751822,0.45243362,86.964,86.941,0.45925809]
[1773509759925,0.45243362,86.964,86.95,3.74841253]
[1773509763327,0.45243362,86.962,86.93,0.2]
[1773509763523,0.45243362,86.959,86.93,0.2]
[1773509763726,0.45243362,86.957,86.93,0.2]
[1773509766130,0.45243362,86.955,86.93,3.94841253]
[1773509766431,0.45243362,86.955,86.93,4.40767062]
[1773509769429,0.45243362,86.953,86.931,0.45925809]
[1773509770527,0.45243362,86.951,86.931,0.45925809]
[1773509773433,11.50086256,86.95,86.931,0.45925809]
[1773509773741,0.45243362,86.949,86.931,0.45925809]
[1773509784748,0.47888145,86.947,86.92,15.45318877]
[1773509786152,0.47888145,86.962,86.94,3.74841253]
[1773509786536,0.47888145,86.962,86.941,0.04223709]
[1773509788440,0.47888145,86.96,86.941,0.04223709]
[1773509794759,0.47888145,86.96,86.942,0.04223709]
[1773509803064,0.47888145,86.966,86.95,3.74841253]
[1773509803364,0.47888145,86.966,86.95,3.79064962]
[1773509803668,0.47888145,86.966,86.95,3.790562]
[1773509815883,11.49887885,86.965,86.95,0.04223709]
[1773509816065,0.48715807,86.964,86.95,3.790562]
[1773509826499,64.8149231,86.995,86.95,3.790562]
[1773509826500,0.48715807,86.977,86.952,0.04223709]
[1773509826792,0.48715807,86.977,86.97,3.74832491]
[1773509826990,0.48715807,86.977,86.96,3.790562]
[1773509837601,0.48715807,86.977,86.961,0.04223709]
[1773509837801,0.48715807,86.977,86.97,3.74832491]
[1773509838892,0.48715807,86.983,86.97,3.74832491]
[1773509840300,11.49438499,86.999,86.971,0.44223709]
[1773509841302,11.49438499,86.999,86.98,3.74832491]
[1773509841705,11.49438499,86.999,86.972,0.44223709]
[1773509842401,0.47439604,86.998,86.972,0.44223709]
[1773509845486,11.49464924,86.997,86.972,0.44223709]
[1773509845687,0.47439604,86.996,86.972,0.44223709]
[1773509848592,0.47439604,86.994,86.972,0.44223709]
[1773509851497,0.47439604,86.992,86.972,0.44223709]
[1773509854591,0.47439604,86.99,86.972,0.44223709]
[1773509855601,0.47439604,86.99,86.98,3.74832491]
[1773509856004,0.47439604,86.99,86.972,0.44223709]
[1773509863422,0.47439604,86.988,86.97,3.74832491]
[1773509865629,0.47439604,86.988,86.97,3.74683132]
[1773509870422,0.47439604,86.988,86.97,4.18906841]
[1773509871232,0.45836391,86.995,86.98,3.74683132]
[1773509871413,0.45836391,86.995,86.981,0.44223709]
[1773509874927,0.45836391,86.995,86.97,3.74683132]
[1773509874928,0.5,86.994,86.97,3.74683132]
[1773509875128,0.5,86.994,86.963,11.49914331]
[1773509875334,0.5,86.994,86.97,3.74683132]
[1773509878514,11.49517777,86.993,86.97,3.74683132]
[1773509878832,0.5,86.992,86.97,3.74683132]
[1773509880515,0.5,86.99,86.962,7.34]
[1773509880715,0.5,86.99,86.956,11.50002082]
[1773509880716,0.5,86.989,86.956,11.50002082]
[1773509881133,0.5,86.979,86.937,28.75630558]
[1773509881318,0.5,86.959,86.92,3.94683132]
[1773509881518,3.74683132,86.96,86.92,15.45165244]
[1773509882032,3.74683132,86.96,86.921,0.47615179]
[1773509883028,40.24885289,86.959,86.921,0.47615179]
[1773509883432,0.46877469,86.958,86.921,0.47615179]
[1773509886346,0.46877469,86.956,86.923,0.47615179]
[1773509887643,28.74918064,86.959,86.923,0.47615179]
[1773509887644,0.46877469,86.954,86.923,0.47615179]
[1773509890649,0.46877469,86.952,86.922,11.50456731]
[1773509891251,0.46877469,86.952,86.923,0.47615179]
[1773509893753,0.46877469,86.967,86.931,0.47615179]
[1773509900540,11.49874663,86.966,86.932,11.50324391]
[1773509900741,0.46877469,86.965,86.933,0.47615179]
[1773509901756,11.49874663,86.966,86.93,3.74683132]
[1773509901757,0.45491256,86.963,86.935,0.49275985]
[1773509904060,11.49927554,86.962,86.935,0.49275985]
[1773509904357,0.45491256,86.961,86.935,0.49275985]
[1773509908557,11.49954001,86.96,86.935,0.49275985]
[1773509908763,0.45491256,86.959,86.935,0.49275985]
[1773509912565,0.45491256,86.959,86.937,0.49275985]
[1773509913957,0.45491256,86.957,86.937,0.49275985]
[1773509923756,0.45491256,86.957,86.941,0.49275985]
[1773509938597,0.45491256,86.957,86.937,0.45448264]
[1773509946903,0.45491256,86.957,86.938,11.95693266]
[1773509948191,0.45491256,86.957,86.932,0.45448264]
[1773509948494,0.48112191,86.955,86.932,0.45448264]
[1773509950797,0.48112191,86.955,86.933,11.50311159]
[1773509950990,0.48112191,86.955,86.933,11.95759423]
[1773509952806,0.48112191,86.955,86.933,11.50311159]
[1773509954903,0.48112191,86.953,86.933,11.50311159]
[1773509956302,0.48112191,86.953,86.93,3.74963185]
[1773509958409,11.50059803,86.952,86.931,11.50337624]
[1773509958609,0.48112191,86.949,86.92,0.2]
[1773509959891,0.48112191,86.947,86.92,0.2]
[1773509960512,0.48112191,86.947,86.92,3.94963185]
[1773509960712,0.48112191,86.947,86.922,0.45448264]
[1773509962818,0.48112191,86.947,86.923,11.50443495]
[1773509963116,0.48112191,86.947,86.924,0.4810943]
[1773509974326,0.48112191,86.947,86.925,11.50417026]
[1773509975041,0.48359842,86.946,86.925,11.50417026]
[1773509982130,0.48359842,86.946,86.921,11.50469966]
[1773509982544,0.48359842,86.946,86.921,11.98579396]
[1773509985229,0.48359842,86.946,86.921,11.50469966]
[1773509985536,0.48359842,86.944,86.921,11.50469966]
[1773509985837,0.48359842,86.944,86.921,11.98579396]
[1773509986529,0.48359842,86.944,86.921,11.50469966]
[1773509986935,0.48359842,86.942,86.921,11.50469966]
[1773509989843,0.48359842,86.942,86.922,0.4842373]
[1773509999144,0.48359842,86.942,86.921,11.50469966]
[1773509999319,0.48185895,86.929,86.91,0.2]
[1773510006555,0.48185895,86.927,86.91,0.2]
[1773510007539,11.50403791,86.926,86.91,0.2]
[1773510007746,0.48185895,86.925,86.91,0.2]
[1773510011848,0.48185895,86.923,86.91,0.2]
[1773510018971,11.50456731,86.922,86.91,0.2]
[1773510022070,0.49816515,86.954,86.911,0.48339907]
[1773510022255,0.49816515,86.954,86.93,3.75171606]
[1773510022454,0.49816515,86.954,86.931,0.48339907]
[1773510023575,0.49816515,86.949,86.931,0.48339907]
[1773510023877,0.49816515,86.949,86.921,0.48339907]
[1773510026555,0.49816515,86.947,86.921,0.48339907]
[1773510027850,0.49816515,86.939,86.916,0.48339907]
[1773510030267,0.49816515,86.937,86.916,0.48339907]
[1773510032382,0.49816515,86.951,86.921,0.48339907]
[1773510033580,0.49816515,86.948,86.921,0.48339907]
[1773510036386,11.50125938,86.947,86.921,0.48339907]
[1773510036686,0.49816515,86.946,86.921,0.48339907]
[1773510036885,0.49816515,86.939,86.912,0.48339907]
[1773510040481,29.25131361,86.947,86.914,0.48339907]
[1773510040668,11.50189461,86.943,86.921,0.48339907]
[1773510042688,12.00005976,86.943,86.921,0.48339907]
[1773510043496,0.49816515,86.942,86.921,0.48339907]
[1773510043886,11.50205311,86.941,86.921,0.48339907]
[1773510048511,29.25131361,86.947,86.921,0.48339907]
[1773510049599,11.50152395,86.945,86.921,0.48339907]
[1773510050404,11.99672156,86.945,86.921,0.48339907]
[1773510050908,28.75314846,86.947,86.921,0.48339907]
[1773510051200,29.24834607,86.947,86.921,0.48339907]
[1773510053001,40.25440784,86.947,86.921,0.48339907]
[1773510056083,11.50125938,86.947,86.921,0.48339907]
[1773510056281,29.24000188,86.957,86.923,0.49001218]
[1773510056485,11.500069,86.956,86.923,0.49001218]
[1773510056910,0.49005144,86.949,86.923,0.49001218]
[1773510059596,0.49005144,86.947,86.923,0.49001218]
[1773510060315,11.99065429,86.952,86.925,0.49001218]
[1773510060520,11.50060285,86.952,86.925,0.49001218]
[1773510061706,11.50060285,86.952,86.927,0.49001218]
[1773510062013,11.50060285,86.952,86.931,0.49001218]
[1773510066215,0.49005144,86.96,86.933,0.49001218]
[1773510066420,0.49005144,86.976,86.941,0.49001218]
[1773510067611,0.49005144,86.974,86.941,0.49001218]
[1773510069511,0.49005144,86.972,86.941,0.49001218]
[1773510069698,40.24237406,86.973,86.941,0.49001218]
[1773510069699,0.49005144,86.969,86.941,0.49001218]
[1773510071489,0.49005144,86.967,86.941,0.49001218]
[1773510075300,0.49005144,86.965,86.941,0.49001218]
[1773510080510,0.49005144,86.963,86.941,0.49001218]
[1773510083729,11.49927554,86.962,86.941,0.49001218]
[1773510084108,11.97679025,86.962,86.941,0.49001218]
[1773510086732,0.47751471,86.961,86.941,0.49001218]
[1773510087726,0.47751471,86.968,86.941,0.49001218]
[1773510087917,11.49861441,86.967,86.941,0.49001218]
[1773510088228,0.47751471,86.966,86.941,0.49001218]
[1773510089220,0.47751471,86.964,86.941,0.49001218]
[1773510093834,11.97665802,86.963,86.941,0.49001218]
[1773510094129,0.47751471,86.962,86.941,0.49001218]
[1773510095110,0.47751471,86.96,86.941,0.49001218]
[1773510097942,0.47751471,86.958,86.941,0.49001218]
[1773510104350,0.47751471,86.956,86.926,7.34]
[1773510104536,0.47751471,86.949,86.913,0.47182345]
[1773510107149,0.47751471,86.947,86.915,0.47182345]
[1773510113454,0.47751471,86.947,86.921,0.48139121]
[1773510114248,11.50139166,86.946,86.921,0.48139121]
[1773510114549,0.47898213,86.945,86.921,0.48139121]
[1773510117645,0.47898213,86.943,86.921,0.48139121]
[1773510121971,11.50192082,86.942,86.921,0.48139121]
[1773510122161,0.47898213,86.941,86.921,0.48139121]
[1773510123563,0.47898213,86.941,86.923,0.48139121]
[1773510127663,0.47898213,86.947,86.925,0.48139121]
[1773510127867,0.47898213,86.952,86.931,0.48139121]
[1773510130667,0.47898213,86.952,86.931,11.98464532]
[1773510130869,0.47898213,86.952,86.932,0.48139121]
[1773510135557,0.47898213,86.95,86.932,0.48139121]
[1773510136069,0.47898213,86.948,86.923,0.48139121]
[1773510136375,0.47898213,86.948,86.922,7.34]
[1773510137566,0.47898213,86.946,86.922,7.34]
[1773510139977,0.47898213,86.944,86.922,7.34]
[1773510142076,0.4668512,86.942,86.922,7.83414553]
[1773510142257,0.4668512,86.942,86.923,0.49414553]
[1773510152984,0.4668512,86.942,86.922,7.34]
[1773510154183,0.4668512,86.942,86.923,0.49414553]
[1773510157087,0.4668512,86.942,86.922,7.34]
[1773510159688,0.4668512,86.942,86.922,7.83414553]
[1773510161486,0.4668512,86.942,86.923,0.49414553]
[1773510166182,0.4668512,86.942,86.924,11.99844813]
[1773510166789,0.4668512,86.942,86.924,11.5043026]
[1773510167019,0.4668512,86.942,86.925,0.49414553]
[1773510167889,0.4668512,86.942,86.922,7.34]
[1773510169887,0.4668512,86.94,86.922,7.34]
[1773510172090,0.49861842,86.938,86.922,7.34]
[1773510174602,0.49861842,86.938,86.923,0.4841073]
[1773510175007,0.49861842,86.956,86.924,0.4841073]
[1773510176005,0.49861842,86.954,86.924,0.4841073]
[1773510178003,0.49861842,86.952,86.926,0.4841073]
[1773510178988,0.49861842,86.952,86.931,0.4841073]
[1773510189420,0.49861842,86.952,86.931,11.50337624]
[1773510202630,0.49205365,86.962,86.94,3.7519387]
[1773510203010,0.49205365,86.961,86.94,3.7519387]
[1773510204112,0.49205365,86.959,86.93,3.7519387]
[1773510205231,0.49205365,86.957,86.923,11.50443495]
[1773510205429,0.49205365,86.957,86.93,3.7519387]
[1773510209134,0.49205365,86.955,86.931,11.50337624]
[1773510219122,0.49205365,86.955,86.925,28.76015358]
[1773510242762,0.49205365,86.953,86.925,28.76015358]
[1773510258676,0.49205365,86.952,86.925,28.76015358]
[1773510270285,0.49205365,86.95,86.923,11.50443495]
[1773510270478,0.49205365,86.95,86.912,28.76446105]
[1773510270479,0.49205365,86.949,86.918,7.34]
[1773510271264,11.50112711,86.948,86.919,11.50496439]
[1773510271587,0.49205365,86.947,86.919,11.50496439]
[1773510277990,0.49205365,86.947,86.92,3.75098642]
[1773510281094,0.49205365,86.947,86.921,11.50469966]
[1773510290317,13.48164723,86.973,86.931,0.45608999]
[1773510290611,3.75098642,86.97,86.931,0.45608999]
[1773510291915,3.75098642,86.96,86.931,0.45608999]
[1773510292325,11.4998045,86.958,86.932,11.50324391]
[1773510292500,0.46267525,86.957,86.932,11.50324391]
[1773510296617,7.34,86.982,86.932,11.50324391]
[1773510296618,3.75110099,86.97,86.941,0.47027465]
[1773510297301,11.49544205,86.991,86.951,0.47027465]
[1773510297501,3.75110099,86.99,86.951,0.47027465]
[1773510298530,0.46267525,86.987,86.953,0.47027465]
[1773510301432,0.46267525,86.985,86.955,0.47027465]
[1773510303432,0.46267525,86.985,86.957,0.47027465]
[1773510307610,0.46267525,86.989,86.961,0.47027465]
[1773510310722,0.46267525,86.988,86.963,0.47027465]
[1773510312238,11.49597066,86.987,86.963,0.47027465]
[1773510312446,0.46267525,86.986,86.963,0.47027465]
[1773510312743,0.46267525,86.986,86.958,0.47027465]
[1773510314147,0.46267525,86.984,86.958,0.47027465]
[1773510317138,0.46267525,86.982,86.958,0.47027465]
[1773510320127,11.49676366,86.981,86.958,0.47027465]
[1773510320332,0.46267525,86.98,86.958,0.47027465]
[1773510323150,0.48669215,86.978,86.958,0.47027465]
[1773510331446,0.48669215,86.976,86.958,0.47027465]
[1773510332171,0.48669215,86.976,86.955,11.50009436]
[1773510332352,0.48669215,86.976,86.955,11.97176553]
[1773510334447,0.48669215,86.976,86.955,0.47167117]
[1773510336058,0.48669215,86.974,86.952,0.47167117]
[1773510341362,0.48669215,86.972,86.946,11.97295274]
[1773510342253,0.48669215,86.972,86.947,0.47167117]
[1773510342772,0.48669215,86.972,86.932,0.47167117]
[1773510343066,0.48669215,86.959,86.932,0.47167117]
[1773510344568,0.48669215,86.959,86.934,0.47167117]
[1773510345972,0.48669215,86.959,86.935,11.50284695]
[1773510346354,7.34,86.981,86.926,0.47167117]
[1773510346355,0.48669215,86.949,86.926,0.47167117]
[1773510352178,0.48669215,86.949,86.927,11.50390557]
[1773510352391,0.48669215,86.949,86.928,0.48553207]
[1773510356300,0.48669215,86.949,86.93,0.48553207]
[1773510357708,0.48669215,86.949,86.931,11.50337624]
[1773510360799,0.48856271,86.947,86.921,11.50469966]
[1773510360980,0.48856271,86.947,86.915,7.34]
[1773510360981,0.48856271,86.939,86.917,11.50520645]
[1773510367897,0.48856271,86.939,86.917,11.99073852]
[1773510368705,0.48856271,86.939,86.919,11.50496439]
[1773510368889,0.48856271,86.939,86.919,11.99049646]
[1773510370789,0.48856271,86.939,86.919,11.50496439]
[1773510371087,0.48856271,86.939,86.92,0.48553207]
[1773510373209,0.48856271,86.937,86.911,0.48553207]
[1773510373604,0.48856271,86.937,86.911,11.99155547]
[1773510373811,0.48856271,86.937,86.912,0.48553207]
[1773510379301,0.48856271,86.935,86.912,0.48553207]
[1773510380819,0.48856271,86.933,86.91,11.69158506]
[1773510382913,0.48856271,86.933,86.911,0.48508953]
[1773510383299,0.48856271,86.933,86.912,11.99098054]
[1773510383915,0.46951651,86.929,86.912,11.50589101]
[1773510387316,0.46951651,86.929,86.914,11.99071578]
[1773510389120,0.46951651,86.933,86.915,0.48508953]
[1773510389307,11.50073029,86.951,86.917,0.48949948]
[1773510389511,11.50073029,86.951,86.921,0.48949948]
[1773510389710,3.75120862,86.95,86.921,0.48949948]
[1773510389910,11.50073029,86.951,86.921,0.48949948]
[1773510390109,3.75120862,86.95,86.921,0.48949948]
[1773510390516,11.50073029,86.951,86.921,0.48949948]
[1773510391205,3.75120862,86.95,86.923,0.48949948]
[1773510391533,0.46951651,86.949,86.923,0.48949948]
[1773510394426,0.46951651,86.949,86.925,0.48949948]
[1773510396632,0.46951651,86.949,86.926,11.50403791]
[1773510396830,0.46951651,86.949,86.927,0.48949948]
[1773510399933,0.46951651,86.948,86.927,0.48949948]
[1773510403220,0.46951651,86.948,86.929,0.48949948]
[1773510406919,3.75120862,86.95,86.931,0.48949948]
[1773510407734,0.46951651,86.957,86.931,0.48949948]
[1773510408349,11.96958551,86.956,86.931,0.48949948]
[1773510408550,0.46951651,86.955,86.933,0.48949948]
[1773510408748,11.500069,86.956,86.933,0.48949948]
[1773510408947,0.46951651,86.959,86.933,0.48949948]
[1773510409959,0.46951651,86.959,86.934,11.50297927]
[1773510410161,0.46951651,86.959,86.935,0.48949948]
[1773510413352,0.46951651,86.959,86.93,3.75120862]
[1773510413353,0.468982,86.963,86.937,0.47983449]
[1773510414862,0.468982,86.962,86.939,0.47983449]
[1773510415856,0.468982,86.962,86.94,11.50218541]
[1773510416046,0.468982,86.962,86.941,0.47983449]
[1773510423968,0.468982,86.962,86.93,3.75036908]
[1773510423969,0.468982,86.962,86.943,0.47983449]
[1773510424275,0.468982,86.969,86.943,0.47983449]
[1773510426269,0.468982,86.969,86.944,11.50165623]
[1773510426475,0.468982,86.969,86.945,0.47983449]
[1773510427475,0.468982,86.969,86.947,0.47983449]
[1773510430174,0.468982,86.969,86.949,0.47983449]
[1773510435182,0.468982,86.969,86.951,0.47983449]
[1773510444485,0.46377596,86.967,86.946,0.49097851]
[1773510449396,0.46377596,86.965,86.946,0.49097851]
[1773510452499,0.46377596,86.963,86.933,0.49097851]
[1773510453381,0.46377596,86.963,86.933,11.50311159]
[1773510453591,0.46377596,86.961,86.936,0.49097851]
[1773510454674,3.75036908,86.97,86.935,11.50284695]
[1773510454880,3.49,88.266,86.935,11.50284695]
[1773510454881,0.46377596,86.986,86.951,0.49097851]
[1773510455700,0.46377596,86.984,86.953,0.49097851]
[1773510456991,0.46377596,86.982,86.955,0.49097851]
[1773510459604,0.46377596,86.98,86.957,0.49097851]
[1773510459802,4.21414504,86.98,86.957,0.49097851]
[1773510459982,0.46377596,86.979,86.957,0.49097851]
[1773510461588,11.4971602,86.978,86.957,0.49097851]
[1773510461787,11.96093616,86.978,86.957,0.49097851]
[1773510462088,11.96093616,86.978,86.959,0.49097851]
[1773510465409,0.46377596,86.977,86.959,0.49097851]
[1773510467305,11.49570635,86.989,86.96,0.49097851]
[1773510467510,11.49570635,86.989,86.961,0.49097851]
[1773510469510,0.46377596,86.986,86.963,0.49097851]
[1773510470990,0.49149914,86.984,86.963,0.49097851]
[1773510478720,11.49649931,86.983,86.963,0.49097851]
[1773510479017,0.49576456,86.982,86.963,0.49097851]
[1773510491924,0.49576456,86.982,86.965,0.45229846]
[1773510497228,7.90703125,87.002,86.971,0.45229846]
[1773510497435,7.90703125,87.002,86.966,11.49874663]
[1773510497436,7.90703125,87.002,86.981,0.45229846]
[1773510498115,0.49576456,87.001,86.981,0.45229846]
[1773510500537,0.49576456,87.001,86.983,0.45229846]
[1773510504532,7.41126669,87.002,86.983,0.45229846]
[1773510504931,7.41126669,87.002,86.985,0.45677198]
[1773510506335,7.8876805,87.002,86.985,0.45677198]
[1773510507318,0.47641381,87.001,86.985,0.45677198]
[1773510522350,0.47641381,87.0,86.978,11.4971428]
[1773510522551,0.47641381,87.0,86.961,7.34]
[1773510522552,0.47641381,86.989,86.947,0.45677198]
[1773510522743,0.47641381,86.969,86.947,0.45677198]
[1773510523535,0.47641381,86.969,86.948,11.50112711]
[1773510523748,0.47641381,86.969,86.949,0.45677198]
[1773510525060,0.47641381,86.981,86.951,0.45677198]
[1773510529045,0.47641381,86.979,86.953,0.45677198]
[1773510530261,0.47641381,86.979,86.955,0.45677198]
[1773510534664,0.48808501,86.977,86.955,0.45677198]
[1773510536864,0.48808501,86.975,86.955,0.45677198]
[1773510538766,0.48808501,86.973,86.95,0.47977709]
[1773510541179,0.48808501,86.969,86.933,0.47977709]
[1773510542482,0.48808501,86.967,86.934,0.47977709]
[1773510545175,0.48808501,86.967,86.941,0.47977709]
[1773510545176,11.49874663,86.966,86.941,0.47977709]
[1773510545361,0.48808501,86.965,86.941,0.47977709]
[1773510548351,0.48808501,86.965,86.943,0.47977709]
[1773510553382,0.48808501,86.965,86.945,0.47977709]
[1773510559782,0.48808501,86.965,86.947,0.47977709]
[1773510573088,0.48808501,86.965,86.949,0.45348953]
[1773510573295,0.48001259,86.97,86.949,0.45348953]
[1773510575595,0.48001259,86.97,86.951,0.45348953]
[1773510578500,0.48001259,86.97,86.953,0.45348953]
[1773510581402,0.48001259,86.97,86.954,11.5003335]
[1773510582100,0.48001259,86.97,86.954,11.95382303]
[1773510586801,0.48001259,86.97,86.955,0.45348953]
[1773510588200,0.48001259,86.977,86.956,0.45348953]
[1773510589295,0.48001259,86.977,86.957,11.49993675]
[1773510589502,0.48001259,86.977,86.958,0.45348953]
[1773510592305,0.48001259,86.977,86.951,11.50061826]
[1773510592306,0.48001259,86.977,86.952,0.47341579]
[1773510593411,0.45060596,86.975,86.952,0.47341579]
[1773510593593,11.49768896,86.974,86.952,0.47341579]
[1773510593795,0.45060596,86.973,86.952,0.47341579]
[1773510595210,0.45060596,86.969,86.948,0.47341579]
[1773510597193,0.45060596,86.959,86.923,0.47341579]
[1773510597515,0.45060596,86.959,86.924,0.47341579]
[1773510601097,0.45060596,86.959,86.923,11.50443495]
[1773510601098,0.45060596,86.949,86.918,0.47341579]
[1773510602819,0.45060596,86.949,86.914,0.47341579]
[1773510602998,11.50245002,86.938,86.914,0.47341579]
[1773510603311,0.45060596,86.937,86.914,0.47341579]
[1773510606303,0.45060596,86.937,86.913,0.47341579]
[1773510610208,0.45060596,86.935,86.913,0.47341579]
[1773510610523,0.45060596,86.935,86.915,0.47341579]
[1773510619725,0.45060596,86.933,86.912,7.34]
[1773510620029,0.45060596,86.933,86.914,0.47341579]
[1773510623235,0.4702529,86.931,86.914,0.47341579]
[1773510626730,0.4702529,86.929,86.9,0.2]
[1773510627322,0.4702529,86.919,86.9,0.2]
[1773510628327,0.4702529,86.919,86.89,0.2]
[1773510628923,0.4702529,86.917,86.891,0.45887377]